[Event "Titled Tuesday Blitz June 29 2021"]
[White "GM_dmitrij"]
[Black "DenLaz"]
[WhiteElo "2907"]
[BlackElo "2852"]
[Result "1-0"]
[Round "10"]
[TimeControl "180+1"]
[Date "2021.06.29"]
[WhiteClock "0:00:11"]
[BlackClock "0:00:11"]

1. e4 {[%clk 0:03:00]}  e5 {[%clk 0:02:59]} 2. Nf3 {[%clk 0:03:00]}  Nc6 {[%clk 0:03:00]} 3. d4 {[%clk 0:03:00]}  exd4 {[%clk 0:03:00]} 4. Nxd4 {[%clk 0:03:01]}  Bc5 {[%clk 0:02:59]} 5. Be3 {[%clk 0:02:59]}  Qf6 {[%clk 0:02:58]} 6. c3 {[%clk 0:03:00]}  Nge7 {[%clk 0:02:58]} 7. Bb5 {[%clk 0:02:59]}  O-O {[%clk 0:02:56]} 8. O-O {[%clk 0:02:57]}  d6 {[%clk 0:02:54]} 9. Re1 {[%clk 0:02:55]}  Ne5 {[%clk 0:02:42]} 10. Be2 {[%clk 0:02:48]}  N7g6 {[%clk 0:02:41]} 11. Nc2 {[%clk 0:02:30]}  Nf4 {[%clk 0:02:34]} 12. Nd2 {[%clk 0:02:13]}  Nfd3 {[%clk 0:01:43]} 13. Bxd3 {[%clk 0:01:51]}  Nxd3 {[%clk 0:01:42]} 14. Rf1 {[%clk 0:01:51]}  Nxb2 {[%clk 0:01:39]} 15. Qe2 {[%clk 0:01:50]}  Na4 {[%clk 0:01:37]} 16. c4 {[%clk 0:01:44]}  Re8 {[%clk 0:01:27]} 17. Rae1 {[%clk 0:01:40]}  Bd7 {[%clk 0:01:24]} 18. Bxc5 {[%clk 0:01:29]}  Nxc5 {[%clk 0:01:23]} 19. Ne3 {[%clk 0:01:30]}  Bc6 {[%clk 0:01:19]} 20. f3 {[%clk 0:01:30]}  Ne6 {[%clk 0:01:09]} 21. Nb3 {[%clk 0:01:26]}  a5 {[%clk 0:01:05]} 22. Nd5 {[%clk 0:01:24]}  Bxd5 {[%clk 0:00:46]} 23. cxd5 {[%clk 0:01:25]}  Nf4 {[%clk 0:00:41]} 24. Qd2 {[%clk 0:01:25]}  a4 {[%clk 0:00:34]} 25. Nd4 {[%clk 0:01:25]}  Ng6 {[%clk 0:00:30]} 26. Rb1 {[%clk 0:01:21]}  c5 {[%clk 0:00:22]} 27. dxc6 {[%clk 0:01:16]}  bxc6 {[%clk 0:00:23]} 28. Nxc6 {[%clk 0:01:17]}  h5 {[%clk 0:00:20]} 29. Nb4 {[%clk 0:01:14]}  Nf4 {[%clk 0:00:18]} 30. g3 {[%clk 0:01:11]}  Ng6 {[%clk 0:00:17]} 31. Nd5 {[%clk 0:01:12]}  Qd8 {[%clk 0:00:16]} 32. Rb7 {[%clk 0:01:08]}  Qa5 {[%clk 0:00:17]} 33. Qg5 {[%clk 0:01:00]}  Qc5+ {[%clk 0:00:16]} 34. Kg2 {[%clk 0:00:57]}  Re5 {[%clk 0:00:16]} 35. Qd2 {[%clk 0:00:53]}  Qa5 {[%clk 0:00:16]} 36. Qxa5 {[%clk 0:00:50]}  Rxa5 {[%clk 0:00:17]} 37. Rc1 {[%clk 0:00:51]}  Rc5 {[%clk 0:00:16]} 38. Rxc5 {[%clk 0:00:49]}  dxc5 {[%clk 0:00:17]} 39. Rc7 {[%clk 0:00:40]}  f5 {[%clk 0:00:17]} 40. Nc3 {[%clk 0:00:36]}  fxe4 {[%clk 0:00:14]} 41. Nxe4 {[%clk 0:00:37]}  Re8 {[%clk 0:00:07]} 42. Rxc5 {[%clk 0:00:36]}  Rb8 {[%clk 0:00:07]} 43. Nc3 {[%clk 0:00:26]}  a3 {[%clk 0:00:07]} 44. Rb5 {[%clk 0:00:23]}  Rc8 {[%clk 0:00:07]} 45. Rb3 {[%clk 0:00:23]}  Rd8 {[%clk 0:00:04]} 46. Ne4 {[%clk 0:00:21]}  Rc8 {[%clk 0:00:04]} 47. Rxa3 {[%clk 0:00:15]}  Rc2+ {[%clk 0:00:04]} 48. Kg1 {[%clk 0:00:15]}  Ne5 {[%clk 0:00:05]} 49. Ng5 {[%clk 0:00:14]}  Kf8 {[%clk 0:00:05]} 50. h4 {[%clk 0:00:12]}  Rb2 {[%clk 0:00:04]} 51. Re3 {[%clk 0:00:11]}  Ng6 {[%clk 0:00:03]} 52. a4 {[%clk 0:00:10]}  Ra2 {[%clk 0:00:04]} 53. Re4 {[%clk 0:00:10]}  Ne7 {[%clk 0:00:04]} 54. Ne6+ {[%clk 0:00:10]}  Kf7 {[%clk 0:00:04]} 55. Nxg7 {[%clk 0:00:11]}  Ra3 {[%clk 0:00:02]} 56. Kf2 {[%clk 0:00:09]}  Ra2+ {[%clk 0:00:01]} 57. Kf1 {[%clk 0:00:09]}  Ra1+ {[%clk 0:00:02]} 58. Kg2 {[%clk 0:00:10]}  Ra2+ {[%clk 0:00:02]} 59. Kh3 {[%clk 0:00:10]}  Nd5 {[%clk 0:00:01]} 60. Nxh5 {[%clk 0:00:10]}  Nc3 {[%clk 0:00:02]} 61. Re3 {[%clk 0:00:08]}  Nd1 {[%clk 0:00:02]} 62. Rb3 {[%clk 0:00:06]}  Nf2+ {[%clk 0:00:03]} 63. Kg2 {[%clk 0:00:07]}  Nd1+ {[%clk 0:00:03]} 64. Kf1 {[%clk 0:00:07]}  Rxa4 {[%clk 0:00:03]} 65. Ke2 {[%clk 0:00:07]}  Rd4 {[%clk 0:00:03]} 66. Nf4 {[%clk 0:00:06]}  Rd7 {[%clk 0:00:02]} 67. Rd3 {[%clk 0:00:06]}  Rxd3 {[%clk 0:00:02]} 68. Nxd3 {[%clk 0:00:07]}  Nc3+ {[%clk 0:00:02]} 69. Ke3 {[%clk 0:00:08]}  Nd5+ {[%clk 0:00:03]} 70. Ke4 {[%clk 0:00:08]}  Nf6+ {[%clk 0:00:03]} 71. Kf5 {[%clk 0:00:09]}  Nh5 {[%clk 0:00:04]} 72. Ne5+ {[%clk 0:00:09]}  Kg7 {[%clk 0:00:05]} 73. g4 {[%clk 0:00:10]}  Nf6 {[%clk 0:00:05]} 74. Kf4 {[%clk 0:00:10]}  Nd5+ {[%clk 0:00:06]} 75. Kf5 {[%clk 0:00:10]}  Ne7+ {[%clk 0:00:07]} 76. Ke4 {[%clk 0:00:10]}  Nc8 {[%clk 0:00:07]} 77. h5 {[%clk 0:00:11]}  Nd6+ {[%clk 0:00:08]} 78. Kf4 {[%clk 0:00:12]}  Nb5 {[%clk 0:00:08]} 79. g5 {[%clk 0:00:12]}  Nd4 {[%clk 0:00:09]} 80. Ng4 {[%clk 0:00:10]}  Kh7 {[%clk 0:00:10]} 81. Nf6+ {[%clk 0:00:10]}  Kg7 {[%clk 0:00:11]} 82. Kg4 {[%clk 0:00:11]}  Ne6 {[%clk 0:00:11]} 83. f4 {[%clk 0:00:11]}  Nf8 {[%clk 0:00:12]} 84. f5 {[%clk 0:00:11]}  Kh8 {[%clk 0:00:12]} 85. g6 {[%clk 0:00:10]}  Kg7 {[%clk 0:00:11]} 86. Kg5 {[%clk 0:00:11]}  Kh8 {[%clk 0:00:12]} 87. Ng4 {[%clk 0:00:10]}  Kg7 {[%clk 0:00:10]} 88. h6+ {[%clk 0:00:10]}  Kh8 {[%clk 0:00:10]} 89. g7+ {[%clk 0:00:11]}  Kh7 {[%clk 0:00:11]} 90. Nf6# {[%clk 0:00:11]} 1-0


[Site "https://www.chess.com"]

[Event "Titled Tuesday Blitz June 29 2021"]
[White "Hikaru"]
[Black "Oleksandr_Bortnyk"]
[WhiteElo "3166"]
[BlackElo "3027"]
[Result "0-1"]
[Round "10"]
[TimeControl "180+1"]
[Date "2021.06.29"]
[WhiteClock "0:00:01"]
[BlackClock "0:00:10"]

1. e4 {[%clk 0:03:00]}  Nf6 {[%clk 0:03:00]} 2. Nc3 {[%clk 0:02:57]}  d5 {[%clk 0:02:59]} 3. e5 {[%clk 0:02:58]}  Nfd7 {[%clk 0:03:00]} 4. f4 {[%clk 0:02:58]}  c5 {[%clk 0:03:00]} 5. Nf3 {[%clk 0:02:59]}  Nc6 {[%clk 0:03:00]} 6. Bb5 {[%clk 0:02:59]}  Ndb8 {[%clk 0:03:00]} 7. Be2 {[%clk 0:02:59]}  Bg4 {[%clk 0:02:59]} 8. O-O {[%clk 0:02:58]}  e6 {[%clk 0:02:58]} 9. d3 {[%clk 0:02:55]}  Be7 {[%clk 0:02:52]} 10. Ne1 {[%clk 0:02:55]}  Bxe2 {[%clk 0:02:50]} 11. Nxe2 {[%clk 0:02:56]}  d4 {[%clk 0:02:49]} 12. Ng3 {[%clk 0:02:55]}  Nd7 {[%clk 0:02:47]} 13. Ne4 {[%clk 0:02:51]}  Nb6 {[%clk 0:02:45]} 14. c4 {[%clk 0:02:24]}  dxc3 {[%clk 0:02:43]} 15. bxc3 {[%clk 0:02:25]}  Nd5 {[%clk 0:02:38]} 16. c4 {[%clk 0:02:14]}  Nc3 {[%clk 0:02:17]} 17. Nxc3 {[%clk 0:02:11]}  Qd4+ {[%clk 0:02:17]} 18. Rf2 {[%clk 0:02:10]}  Qxc3 {[%clk 0:02:17]} 19. Rb1 {[%clk 0:02:11]}  b6 {[%clk 0:02:06]} 20. Qf3 {[%clk 0:01:53]}  Rc8 {[%clk 0:01:48]} 21. Bb2 {[%clk 0:01:53]}  Qa5 {[%clk 0:01:46]} 22. f5 {[%clk 0:01:52]}  exf5 {[%clk 0:01:22]} 23. Qxf5 {[%clk 0:01:48]}  O-O {[%clk 0:01:22]} 24. a3 {[%clk 0:01:36]}  Nd4 {[%clk 0:01:10]} 25. Qe4 {[%clk 0:01:36]}  Rcd8 {[%clk 0:01:05]} 26. Nf3 {[%clk 0:01:32]}  Ne6 {[%clk 0:01:05]} 27. Nd2 {[%clk 0:01:25]}  Qa4 {[%clk 0:01:04]} 28. Nf1 {[%clk 0:01:01]}  Qb3 {[%clk 0:01:00]} 29. Rd2 {[%clk 0:01:01]}  Rd7 {[%clk 0:00:57]} 30. Ng3 {[%clk 0:00:46]}  Rfd8 {[%clk 0:00:50]} 31. Nf5 {[%clk 0:00:45]}  Bg5 {[%clk 0:00:48]} 32. Re2 {[%clk 0:00:37]}  Qxd3 {[%clk 0:00:46]} 33. Nd6 {[%clk 0:00:30]}  Qxe4 {[%clk 0:00:46]} 34. Nxe4 {[%clk 0:00:31]}  Be7 {[%clk 0:00:42]} 35. Nc3 {[%clk 0:00:30]}  Rd2 {[%clk 0:00:31]} 36. Kf2 {[%clk 0:00:27]}  Bg5 {[%clk 0:00:28]} 37. Ne4 {[%clk 0:00:21]}  Rd1 {[%clk 0:00:25]} 38. Re1 {[%clk 0:00:18]}  Rxb1 {[%clk 0:00:24]} 39. Rxb1 {[%clk 0:00:18]}  Rd3 {[%clk 0:00:23]} 40. g3 {[%clk 0:00:16]}  h5 {[%clk 0:00:21]} 41. h4 {[%clk 0:00:13]}  Be7 {[%clk 0:00:19]} 42. Ke2 {[%clk 0:00:11]}  Rb3 {[%clk 0:00:16]} 43. Kd2 {[%clk 0:00:10]}  Nd4 {[%clk 0:00:15]} 44. Nc3 {[%clk 0:00:10]}  g5 {[%clk 0:00:11]} 45. hxg5 {[%clk 0:00:02]}  Bxg5+ {[%clk 0:00:12]} 46. Kd3 {[%clk 0:00:02]}  Kh7 {[%clk 0:00:11]} 47. Ba1 {[%clk 0:00:02]}  Rxa3 {[%clk 0:00:10]} 48. Ke4 {[%clk 0:00:03]}  Nb3 {[%clk 0:00:08]} 49. Rf1 {[%clk 0:00:01]}  Nd2+ {[%clk 0:00:08]} 50. Kf5 {[%clk 0:00:01]}  Nxf1 {[%clk 0:00:09]} 51. Kxg5 {[%clk 0:00:01]}  Rxa1 {[%clk 0:00:10]} 0-1


[Site "https://www.chess.com"]

[Event "Titled Tuesday Blitz June 29 2021"]
[White "Jospem"]
[Black "Riazantsev"]
[WhiteElo "2944"]
[BlackElo "2756"]
[Result "1-0"]
[Round "10"]
[TimeControl "180+1"]
[Date "2021.06.29"]
[WhiteClock "0:00:03"]
[BlackClock "0:00:02"]

1. e4 {[%clk 0:03:00]}  g6 {[%clk 0:02:56]} 2. d4 {[%clk 0:03:00]}  Bg7 {[%clk 0:02:56]} 3. c3 {[%clk 0:03:00]}  a6 {[%clk 0:02:55]} 4. f4 {[%clk 0:02:59]}  b5 {[%clk 0:02:54]} 5. Bd3 {[%clk 0:02:59]}  Bb7 {[%clk 0:02:54]} 6. Nf3 {[%clk 0:02:57]}  e6 {[%clk 0:02:53]} 7. O-O {[%clk 0:02:56]}  Ne7 {[%clk 0:02:53]} 8. Be3 {[%clk 0:02:53]}  d6 {[%clk 0:02:48]} 9. Nbd2 {[%clk 0:02:53]}  Nd7 {[%clk 0:02:48]} 10. Qe1 {[%clk 0:02:53]}  h6 {[%clk 0:02:46]} 11. a4 {[%clk 0:02:48]}  c6 {[%clk 0:02:34]} 12. e5 {[%clk 0:02:43]}  dxe5 {[%clk 0:02:26]} 13. dxe5 {[%clk 0:02:32]}  Nxe5 {[%clk 0:02:20]} 14. Nxe5 {[%clk 0:02:22]}  Bxe5 {[%clk 0:02:19]} 15. fxe5 {[%clk 0:02:11]}  Qxd3 {[%clk 0:02:18]} 16. Bc5 {[%clk 0:02:12]}  Nf5 {[%clk 0:01:28]} 17. g4 {[%clk 0:01:45]}  O-O-O {[%clk 0:01:27]} 18. Rd1 {[%clk 0:01:31]}  Rhg8 {[%clk 0:00:51]} 19. Ne4 {[%clk 0:00:55]}  Qxd1 {[%clk 0:00:51]} 20. Qxd1 {[%clk 0:00:56]}  Rxd1 {[%clk 0:00:51]} 21. Rxd1 {[%clk 0:00:57]}  Nh4 {[%clk 0:00:50]} 22. Kf2 {[%clk 0:00:47]}  g5 {[%clk 0:00:50]} 23. Nd6+ {[%clk 0:00:40]}  Kc7 {[%clk 0:00:48]} 24. a5 {[%clk 0:00:32]}  Ng6 {[%clk 0:00:45]} 25. Nxf7 {[%clk 0:00:27]}  Rg7 {[%clk 0:00:44]} 26. Bb6+ {[%clk 0:00:27]}  Kb8 {[%clk 0:00:44]} 27. Rd8+ {[%clk 0:00:27]}  Bc8 {[%clk 0:00:44]} 28. Nd6 {[%clk 0:00:28]}  Ne7 {[%clk 0:00:42]} 29. b3 {[%clk 0:00:20]}  Rg8 {[%clk 0:00:41]} 30. Rxg8 {[%clk 0:00:11]}  Nxg8 {[%clk 0:00:42]} 31. Bd8 {[%clk 0:00:11]}  c5 {[%clk 0:00:40]} 32. b4 {[%clk 0:00:11]}  cxb4 {[%clk 0:00:39]} 33. cxb4 {[%clk 0:00:11]}  Bb7 {[%clk 0:00:39]} 34. Nxb7 {[%clk 0:00:06]}  Kxb7 {[%clk 0:00:38]} 35. Ke3 {[%clk 0:00:07]}  Kc8 {[%clk 0:00:36]} 36. Bf6 {[%clk 0:00:07]}  Kd7 {[%clk 0:00:34]} 37. Ke4 {[%clk 0:00:06]}  Ke8 {[%clk 0:00:32]} 38. Kd4 {[%clk 0:00:04]}  Kf7 {[%clk 0:00:21]} 39. Bd8 {[%clk 0:00:03]}  Ke8 {[%clk 0:00:21]} 40. Bf6 {[%clk 0:00:02]}  Kf7 {[%clk 0:00:21]} 41. Bd8 {[%clk 0:00:02]}  Ke8 {[%clk 0:00:21]} 42. Bb6 {[%clk 0:00:03]}  Ne7 {[%clk 0:00:16]} 43. Kc5 {[%clk 0:00:03]}  Kd7 {[%clk 0:00:16]} 44. Ba7 {[%clk 0:00:02]}  Nd5 {[%clk 0:00:16]} 45. Bb8 {[%clk 0:00:01]}  Nc3 {[%clk 0:00:10]} 46. Bd6 {[%clk 0:00:01]}  Na4+ {[%clk 0:00:10]} 47. Kd4 {[%clk 0:00:01]}  Nb2 {[%clk 0:00:09]} 48. Bf8 {[%clk 0:00:02]}  Nc4 {[%clk 0:00:08]} 49. Bxh6 {[%clk 0:00:02]}  Nd2 {[%clk 0:00:08]} 50. Ke3 {[%clk 0:00:02]}  Nc4+ {[%clk 0:00:08]} 51. Ke4 {[%clk 0:00:02]}  Nd2+ {[%clk 0:00:08]} 52. Ke3 {[%clk 0:00:03]}  Nc4+ {[%clk 0:00:08]} 53. Ke2 {[%clk 0:00:02]}  Nxe5 {[%clk 0:00:07]} 54. h3 {[%clk 0:00:02]}  Nf7 {[%clk 0:00:07]} 55. Bg7 {[%clk 0:00:03]}  Kd6 {[%clk 0:00:07]} 56. Bf8+ {[%clk 0:00:01]}  Kd5 {[%clk 0:00:07]} 57. Ke3 {[%clk 0:00:02]}  e5 {[%clk 0:00:07]} 58. Bc5 {[%clk 0:00:02]}  e4 {[%clk 0:00:06]} 59. Be7 {[%clk 0:00:02]}  Ke5 {[%clk 0:00:05]} 60. Bf8 {[%clk 0:00:01]}  Kd5 {[%clk 0:00:05]} 61. Bg7 {[%clk 0:00:02]}  Nd6 {[%clk 0:00:04]} 62. Bf6 {[%clk 0:00:01]}  Nf7 {[%clk 0:00:02]} 63. h4 {[%clk 0:00:02]}  gxh4 {[%clk 0:00:02]} 64. Bxh4 {[%clk 0:00:03]}  Ne5 {[%clk 0:00:01]} 65. g5 {[%clk 0:00:02]}  Nc4+ {[%clk 0:00:02]} 66. Kf4 {[%clk 0:00:02]}  Ke6 {[%clk 0:00:02]} 67. Kxe4 {[%clk 0:00:02]}  Nd6+ {[%clk 0:00:01]} 68. Kf4 {[%clk 0:00:02]}  Nf5 {[%clk 0:00:02]} 69. Bf2 {[%clk 0:00:02]}  Ne7 {[%clk 0:00:03]} 70. Bc5 {[%clk 0:00:02]}  Ng6+ {[%clk 0:00:03]} 71. Ke4 {[%clk 0:00:02]}  Nh4 {[%clk 0:00:01]} 72. Bf2 {[%clk 0:00:02]}  Ng6 {[%clk 0:00:02]} 73. Kd4 {[%clk 0:00:02]}  Kd6 {[%clk 0:00:01]} 74. Bg3+ {[%clk 0:00:02]}  Kc6 {[%clk 0:00:02]} 75. Ke4 {[%clk 0:00:03]} 1-0


[Site "https://www.chess.com"]

[Event "Titled Tuesday Blitz June 29 2021"]
[White "Skat2704"]
[Black "Khamrakulov_Djurabek"]
[WhiteElo "2654"]
[BlackElo "2813"]
[Result "1-0"]
[Round "10"]
[TimeControl "180+1"]
[Date "2021.06.29"]
[WhiteClock "0:01:15"]
[BlackClock "0:00:07"]

1. d4 {[%clk 0:03:00]}  d5 {[%clk 0:02:59]} 2. Nf3 {[%clk 0:03:01]}  Nf6 {[%clk 0:02:56]} 3. c4 {[%clk 0:03:00]}  e6 {[%clk 0:02:55]} 4. Nc3 {[%clk 0:02:59]}  c5 {[%clk 0:02:55]} 5. cxd5 {[%clk 0:02:58]}  exd5 {[%clk 0:02:54]} 6. g3 {[%clk 0:02:57]}  Nc6 {[%clk 0:02:53]} 7. Bg2 {[%clk 0:02:56]}  Be6 {[%clk 0:02:52]} 8. O-O {[%clk 0:02:54]}  Be7 {[%clk 0:02:52]} 9. Bg5 {[%clk 0:02:51]}  c4 {[%clk 0:02:48]} 10. Ne5 {[%clk 0:02:49]}  O-O {[%clk 0:02:48]} 11. Nxc6 {[%clk 0:02:47]}  bxc6 {[%clk 0:02:48]} 12. b3 {[%clk 0:02:47]}  Qa5 {[%clk 0:02:30]} 13. Qd2 {[%clk 0:02:45]}  cxb3 {[%clk 0:02:16]} 14. Nxd5 {[%clk 0:02:39]}  Qd8 {[%clk 0:01:39]} 15. Nxf6+ {[%clk 0:02:32]}  gxf6 {[%clk 0:01:36]} 16. Bh6 {[%clk 0:02:29]}  bxa2 {[%clk 0:01:35]} 17. Bxf8 {[%clk 0:02:21]}  Bxf8 {[%clk 0:01:36]} 18. d5 {[%clk 0:02:20]}  cxd5 {[%clk 0:01:30]} 19. Rxa2 {[%clk 0:02:16]}  Bc5 {[%clk 0:01:30]} 20. Rd1 {[%clk 0:02:13]}  Qb6 {[%clk 0:01:27]} 21. e3 {[%clk 0:02:10]}  Rd8 {[%clk 0:01:27]} 22. Rb2 {[%clk 0:02:08]}  Qd6 {[%clk 0:01:27]} 23. Rb7 {[%clk 0:02:03]}  Bb6 {[%clk 0:01:20]} 24. Qc2 {[%clk 0:02:02]}  Rc8 {[%clk 0:01:03]} 25. Qa4 {[%clk 0:02:00]}  Qe5 {[%clk 0:00:47]} 26. Bxd5 {[%clk 0:01:45]}  Rd8 {[%clk 0:00:40]} 27. Bxe6 {[%clk 0:01:43]}  Rxd1+ {[%clk 0:00:36]} 28. Qxd1 {[%clk 0:01:43]}  Qxe6 {[%clk 0:00:37]} 29. Qh5 {[%clk 0:01:37]}  Qc4 {[%clk 0:00:26]} 30. h4 {[%clk 0:01:29]}  Bxe3 {[%clk 0:00:10]} 31. fxe3 {[%clk 0:01:25]}  Qc1+ {[%clk 0:00:07]} 32. Kf2 {[%clk 0:01:17]}  Qc2+ {[%clk 0:00:07]} 33. Qe2 {[%clk 0:01:15]} 1-0


[Site "https://www.chess.com"]

[Event "Titled Tuesday Blitz June 29 2021"]
[White "hanzo_hasashi1"]
[Black "Beca95"]
[WhiteElo "2871"]
[BlackElo "2846"]
[Result "1/2-1/2"]
[Round "10"]
[TimeControl "180+1"]
[Date "2021.06.29"]
[WhiteClock "0:00:10"]
[BlackClock "0:00:14"]

1. d4 {[%clk 0:02:58]}  Nf6 {[%clk 0:03:00]} 2. c4 {[%clk 0:02:58]}  c5 {[%clk 0:03:01]} 3. d5 {[%clk 0:02:55]}  e6 {[%clk 0:03:01]} 4. Nc3 {[%clk 0:02:54]}  exd5 {[%clk 0:03:01]} 5. cxd5 {[%clk 0:02:54]}  d6 {[%clk 0:03:02]} 6. Nf3 {[%clk 0:02:53]}  g6 {[%clk 0:03:02]} 7. Nd2 {[%clk 0:02:52]}  Bg7 {[%clk 0:03:02]} 8. Nc4 {[%clk 0:02:52]}  O-O {[%clk 0:03:02]} 9. Bf4 {[%clk 0:02:52]}  Nh5 {[%clk 0:03:02]} 10. Bxd6 {[%clk 0:02:39]}  Re8 {[%clk 0:03:02]} 11. e3 {[%clk 0:02:03]}  Nd7 {[%clk 0:02:53]} 12. Bg3 {[%clk 0:01:54]}  Nb6 {[%clk 0:02:29]} 13. Nxb6 {[%clk 0:01:51]}  Qxb6 {[%clk 0:02:28]} 14. Qb3 {[%clk 0:01:30]}  Qb4 {[%clk 0:02:21]} 15. Bc4 {[%clk 0:01:22]}  Bf5 {[%clk 0:01:49]} 16. O-O {[%clk 0:01:14]}  Nxg3 {[%clk 0:01:49]} 17. hxg3 {[%clk 0:01:14]}  a6 {[%clk 0:01:48]} 18. a3 {[%clk 0:01:02]}  Qxb3 {[%clk 0:01:46]} 19. Bxb3 {[%clk 0:01:03]}  b5 {[%clk 0:01:46]} 20. Rac1 {[%clk 0:00:58]}  Rad8 {[%clk 0:01:40]} 21. Rfd1 {[%clk 0:00:56]}  c4 {[%clk 0:01:13]} 22. Bc2 {[%clk 0:00:54]}  Bd7 {[%clk 0:01:09]} 23. e4 {[%clk 0:00:45]}  f5 {[%clk 0:01:09]} 24. d6 {[%clk 0:00:33]}  Bxc3 {[%clk 0:00:59]} 25. bxc3 {[%clk 0:00:33]}  fxe4 {[%clk 0:01:00]} 26. Rd4 {[%clk 0:00:32]}  Bc6 {[%clk 0:01:00]} 27. Kf1 {[%clk 0:00:30]}  Kf7 {[%clk 0:00:59]} 28. Ke2 {[%clk 0:00:29]}  Re5 {[%clk 0:00:58]} 29. Ke3 {[%clk 0:00:28]}  Ke6 {[%clk 0:00:58]} 30. Rcd1 {[%clk 0:00:26]}  h5 {[%clk 0:00:45]} 31. R1d2 {[%clk 0:00:07]}  Bd5 {[%clk 0:00:40]} 32. Bxe4 {[%clk 0:00:06]}  Rxd6 {[%clk 0:00:34]} 33. f3 {[%clk 0:00:06]}  Rd7 {[%clk 0:00:32]} 34. Kf2 {[%clk 0:00:05]}  g5 {[%clk 0:00:29]} 35. Bg6 {[%clk 0:00:04]}  Bc6 {[%clk 0:00:14]} 36. Bxh5 {[%clk 0:00:03]}  Rxd4 {[%clk 0:00:14]} 37. Rxd4 {[%clk 0:00:04]}  Ke7 {[%clk 0:00:13]} 38. Bg4 {[%clk 0:00:04]}  Rc5 {[%clk 0:00:13]} 39. f4 {[%clk 0:00:05]}  a5 {[%clk 0:00:13]} 40. Bd1 {[%clk 0:00:04]}  Bd5 {[%clk 0:00:11]} 41. Bc2 {[%clk 0:00:02]}  Bf7 {[%clk 0:00:11]} 42. Ke3 {[%clk 0:00:01]}  Ke6 {[%clk 0:00:11]} 43. f5+ {[%clk 0:00:02]}  Ke7 {[%clk 0:00:11]} 44. g4 {[%clk 0:00:02]}  Re5+ {[%clk 0:00:11]} 45. Re4 {[%clk 0:00:03]}  Kd6 {[%clk 0:00:10]} 46. Rxe5 {[%clk 0:00:03]}  Kxe5 {[%clk 0:00:11]} 47. Be4 {[%clk 0:00:04]}  Be8 {[%clk 0:00:11]} 48. g3 {[%clk 0:00:04]}  Bd7 {[%clk 0:00:11]} 49. Bf3 {[%clk 0:00:04]}  Be8 {[%clk 0:00:12]} 50. Be4 {[%clk 0:00:05]}  Bd7 {[%clk 0:00:12]} 51. Bb7 {[%clk 0:00:05]}  Be8 {[%clk 0:00:12]} 52. Ba6 {[%clk 0:00:05]}  Bc6 {[%clk 0:00:12]} 53. a4 {[%clk 0:00:06]}  bxa4 {[%clk 0:00:11]} 54. Bxc4 {[%clk 0:00:06]}  a3 {[%clk 0:00:12]} 55. Ba2 {[%clk 0:00:06]}  Bd5 {[%clk 0:00:11]} 56. c4 {[%clk 0:00:07]}  Bf7 {[%clk 0:00:11]} 57. Kd3 {[%clk 0:00:07]}  Be8 {[%clk 0:00:11]} 58. Kc3 {[%clk 0:00:07]}  Bc6 {[%clk 0:00:12]} 59. c5 {[%clk 0:00:07]}  Bf3 {[%clk 0:00:12]} 60. Be6 {[%clk 0:00:07]}  Bxg4 {[%clk 0:00:11]} 61. Kb3 {[%clk 0:00:07]}  Bxf5 {[%clk 0:00:11]} 62. Bxf5 {[%clk 0:00:07]}  Kxf5 {[%clk 0:00:11]} 63. Kxa3 {[%clk 0:00:08]}  Ke5 {[%clk 0:00:12]} 64. Ka4 {[%clk 0:00:09]}  Kd5 {[%clk 0:00:13]} 65. Kb5 {[%clk 0:00:09]}  a4 {[%clk 0:00:13]} 66. c6 {[%clk 0:00:09]}  a3 {[%clk 0:00:13]} 67. c7 {[%clk 0:00:10]}  a2 {[%clk 0:00:13]} 68. c8=Q {[%clk 0:00:10]}  a1=Q {[%clk 0:00:13]} 69. Qg8+ {[%clk 0:00:10]}  Ke4 {[%clk 0:00:13]} 70. Qxg5 {[%clk 0:00:10]}  Qe5+ {[%clk 0:00:11]} 71. Qxe5+ {[%clk 0:00:10]}  Kxe5 {[%clk 0:00:12]} 72. Kc6 {[%clk 0:00:10]}  Kf5 {[%clk 0:00:13]} 73. Kd6 {[%clk 0:00:10]}  Kg4 {[%clk 0:00:14]} 74. Ke5 {[%clk 0:00:10]}  Kxg3 {[%clk 0:00:14]} 1/2-1/2


[Site "https://www.chess.com"]

[Event "Titled Tuesday Blitz June 29 2021"]
[White "kingofthenil"]
[Black "AlexOstrovskiy"]
[WhiteElo "2632"]
[BlackElo "2795"]
[Result "0-1"]
[Round "10"]
[TimeControl "180+1"]
[Date "2021.06.29"]
[WhiteClock "0:00:01"]
[BlackClock "0:00:17"]

1. e4 {[%clk 0:03:00]}  d5 {[%clk 0:02:36]} 2. exd5 {[%clk 0:03:01]}  Nf6 {[%clk 0:02:36]} 3. c4 {[%clk 0:03:01]}  e6 {[%clk 0:02:36]} 4. dxe6 {[%clk 0:03:01]}  Bxe6 {[%clk 0:02:37]} 5. d4 {[%clk 0:03:01]}  Bb4+ {[%clk 0:02:31]} 6. Nc3 {[%clk 0:03:01]}  Ne4 {[%clk 0:02:26]} 7. Qd3 {[%clk 0:02:01]}  Bf5 {[%clk 0:02:25]} 8. Bd2 {[%clk 0:00:43]}  O-O {[%clk 0:02:16]} 9. O-O-O {[%clk 0:00:43]}  Nxc3 {[%clk 0:02:13]} 10. Qxf5 {[%clk 0:00:42]}  Nxd1 {[%clk 0:01:29]} 11. Bxb4 {[%clk 0:00:40]}  Qxd4 {[%clk 0:01:29]} 12. Bxf8 {[%clk 0:00:14]}  Nxf2 {[%clk 0:01:29]} 13. Be2 {[%clk 0:00:05]}  Qe3+ {[%clk 0:00:17]} 14. Kb1 {[%clk 0:00:05]}  Kxf8 {[%clk 0:00:18]} 15. Qc8+ {[%clk 0:00:04]}  Ke7 {[%clk 0:00:18]} 16. Qxc7+ {[%clk 0:00:02]}  Nd7 {[%clk 0:00:18]} 17. Nf3 {[%clk 0:00:02]}  Nxh1 {[%clk 0:00:17]} 18. Qxb7 {[%clk 0:00:01]}  Rb8 {[%clk 0:00:17]} 0-1


[Site "https://www.chess.com"]

[Event "Titled Tuesday Blitz June 29 2021"]
[White "pavel_skatchkov"]
[Black "1977Ivan"]
[WhiteElo "2623"]
[BlackElo "2725"]
[Result "0-1"]
[Round "10"]
[TimeControl "180+1"]
[Date "2021.06.29"]
[WhiteClock "0:00:01"]
[BlackClock "0:00:20"]

1. d4 {[%clk 0:03:00]}  Nf6 {[%clk 0:02:59]} 2. c4 {[%clk 0:03:00]}  e6 {[%clk 0:02:59]} 3. Nf3 {[%clk 0:03:00]}  d5 {[%clk 0:02:58]} 4. g3 {[%clk 0:03:00]}  Bb4+ {[%clk 0:02:58]} 5. Nc3 {[%clk 0:02:55]}  dxc4 {[%clk 0:02:54]} 6. Bg2 {[%clk 0:02:51]}  O-O {[%clk 0:02:54]} 7. O-O {[%clk 0:02:46]}  Nc6 {[%clk 0:02:55]} 8. a3 {[%clk 0:02:45]}  Be7 {[%clk 0:02:52]} 9. e4 {[%clk 0:02:44]}  Na5 {[%clk 0:02:42]} 10. Be3 {[%clk 0:02:41]}  a6 {[%clk 0:02:39]} 11. Qe2 {[%clk 0:02:40]}  b5 {[%clk 0:02:38]} 12. Rad1 {[%clk 0:02:40]}  Bb7 {[%clk 0:02:33]} 13. Ne5 {[%clk 0:02:40]}  Nb3 {[%clk 0:02:24]} 14. f4 {[%clk 0:02:38]}  Qc8 {[%clk 0:02:14]} 15. g4 {[%clk 0:02:19]}  c5 {[%clk 0:02:13]} 16. d5 {[%clk 0:02:18]}  Nd4 {[%clk 0:01:58]} 17. Qf2 {[%clk 0:02:18]}  exd5 {[%clk 0:01:58]} 18. exd5 {[%clk 0:02:17]}  Nxg4 {[%clk 0:01:57]} 19. Nxg4 {[%clk 0:02:16]}  Qxg4 {[%clk 0:01:58]} 20. h3 {[%clk 0:02:10]}  Qd7 {[%clk 0:01:43]} 21. Kh2 {[%clk 0:02:09]}  f5 {[%clk 0:01:40]} 22. Bxd4 {[%clk 0:01:17]}  cxd4 {[%clk 0:01:41]} 23. Qxd4 {[%clk 0:01:18]}  Bf6 {[%clk 0:01:41]} 24. Qb6 {[%clk 0:01:18]}  Rab8 {[%clk 0:01:35]} 25. Rfe1 {[%clk 0:01:15]}  Kh8 {[%clk 0:01:19]} 26. Qf2 {[%clk 0:01:00]}  Rbe8 {[%clk 0:01:10]} 27. Re6 {[%clk 0:00:57]}  Bc8 {[%clk 0:01:01]} 28. Rde1 {[%clk 0:00:54]}  Qf7 {[%clk 0:01:00]} 29. Rxe8 {[%clk 0:00:45]}  Rxe8 {[%clk 0:01:01]} 30. d6 {[%clk 0:00:44]}  h6 {[%clk 0:00:43]} 31. Nd5 {[%clk 0:00:08]}  Rxe1 {[%clk 0:00:40]} 32. Qxe1 {[%clk 0:00:09]}  Bxb2 {[%clk 0:00:38]} 33. Nb6 {[%clk 0:00:09]}  Be6 {[%clk 0:00:33]} 34. Bd5 {[%clk 0:00:09]}  Bxd5 {[%clk 0:00:29]} 35. d7 {[%clk 0:00:09]}  Bf6 {[%clk 0:00:27]} 36. Qe8+ {[%clk 0:00:07]}  Kh7 {[%clk 0:00:26]} 37. Nc8 {[%clk 0:00:01]}  Be6 {[%clk 0:00:21]} 38. Nd6 {[%clk 0:00:01]}  Qxd7 {[%clk 0:00:20]} 0-1


[Site "https://www.chess.com"]